[Event "European Online Club-ch-F 2021"]
[Site "Online"]
[Date "2021.03.27"]
[Round "5.12"]
[White "Hamdouchi, Hicham"]
[Black "Kamer, Kayra"]
[Result "1-0"]
[ECO "A45"]
[WhiteElo "2561"]
[BlackElo "2339"]
[Annotator "ChessBase"]
[PlyCount "95"]
[EventDate "2021.03.27"]
[EventType "team-tourn"]
[EventCountry "NET"]
[SourceTitle "playchess.com"]
[Source "ChessBase"]
[SourceQuality "1"]
[TimeControl "900+5"]

1. d4 {[%emt 0:00:00]} Nf6 {[%emt 0:00:03]} 2. Bf4 {[%emt 0:00:04]} g6 {[%emt 0:00:04]} 3. Nc3 {[%emt 0:00:02]} d5 {[%emt 0:00:03]} 4. e3 {[%emt 0:00:02]} Bg7 {[%emt 0:00:02]} 5. h4 {[%emt 0:00:02]} O-O {[%emt 0:00:30]} 6. h5 {[%emt 0:00:15]} c5 {[%emt 0:00:25]} 7. hxg6 {[%emt 0:00:10]} fxg6 {[%emt 0:00:11]} 8. Nf3 {[%emt 0:00:19]} cxd4 {[%emt 0:00:42]} 9. Nxd4 {[%emt 0:01:00]} Nc6 {[%emt 0:00:13]} 10. Nb3 {[%emt 0:00:27]} e5 {[%emt 0:00:18]} 11. Bg5 {[%emt 0:00:02]} d4 {[%emt 0:00:07]} 12. Bc4+ {[%emt 0:00:31]} Kh8 {[%emt 0:00:02]} 13. exd4 {[%emt 0:00:46]} exd4 {[%emt 0:00:06]} 14. Ne2 {[%emt 0:00:04]} Qb6 {[%emt 0:00:55]} 15. Nf4 {[%emt 0:01:26]} Bf5 {[%emt 0:00:53]} 16. Bd3 {[%emt 0:01:21]} Rae8+ {[%emt 0:00:32]} 17. Kf1 {[%emt 0:00:04]} Ne4 {[%emt 0:06:12]} 18. Nd5 {[%emt 0:05:35]} Nxf2 {[%emt 0:00:07]} 19. Kxf2 {[%emt 0:01:28]} Bxd3+ {[%emt 0:00:13]} 20. Kg1 {[%emt 0:00:02]} Qb5 {[%emt 0:00:13]} 21. Qxd3 {[%emt 0:00:02]} Qxd5 {[%emt 0:00:01]} 22. Qxg6 {[%emt 0:00:04]} Qg8 {[%emt 0:00:10]} 23. Rh3 {[%emt 0:01:00]} Ne5 {[%emt 0:01:33]} 24. Qh5 {[%emt 0:00:05]} Nc4 {[%emt 0:01:17]} 25. Kh1 {[%emt 0:00:39]} Rf5 {[%emt 0:00:28]} 26. Qg4 {[%emt 0:00:27]} Ref8 {[%emt 0:00:42]} 27. Nxd4 {[%emt 0:00:42]} Rf1+ {[%emt 0:00:35]} 28. Rxf1 {[%emt 0:00:03]} Rxf1+ {[%emt 0:00:02]} 29. Kh2 {[%emt 0:00:02]} Be5+ {[%emt 0:00:24]} 30. g3 {[%emt 0:00:09]} Qf8 {[%emt 0:00:07]} 31. Bf4 {[%emt 0:00:30]} Bxd4 {[%emt 0:00:10]} 32. Qd7 {[%emt 0:00:05]} Bg7 {[%emt 0:00:06]} 33. Qd3 {[%emt 0:00:02]} h6 {[%emt 0:00:12]} 34. Qxf1 {[%emt 0:00:03]} Ne5 {[%emt 0:00:03]} 35. Qe2 {[%emt 0:00:05]} Nf7 {[%emt 0:00:03]} 36. Qe6 {[%emt 0:00:04]} Qc5 {[%emt 0:00:07]} 37. Qe8+ {[%emt 0:00:09]} Bf8 {[%emt 0:00:06]} 38. Qe2 {[%emt 0:00:11]} Bg7 {[%emt 0:00:01]} 39. Rh4 {[%emt 0:00:03]} Bf6 {[%emt 0:00:04]} 40. Rh5 {[%emt 0:00:05]} Qc6 {[%emt 0:00:08]} 41. Bxh6 {[%emt 0:00:02]} Nxh6 {[%emt 0:00:09]} 42. Rxh6+ {[%emt 0:00:02]} Kg7 {[%emt 0:00:01]} 43. Rh5 {[%emt 0:00:02]} Qa4 {[%emt 0:00:03]} 44. Qd3 {[%emt 0:00:04]} Qg4 {[%emt 0:00:03]} 45. Rd5 {[%emt 0:00:13]} Kh6 {[%emt 0:00:14]} 46. c3 {[%emt 0:00:04]} a6 {[%emt 0:00:02]} 47. Rf5 {[%emt 0:00:02]} Kg7 {[%emt 0:00:05]} 48. Qf3 {[%emt 0:00:03]} 1-0

[Event "European Online Club-ch-F 2021"]
[Site "Online"]
[Date "2021.03.27"]
[Round "5.13"]
[White "Hellers, Ferdinand"]
[Black "Gorodetzky, Matan"]
[Result "0-1"]
[ECO "C08"]
[WhiteElo "2592"]
[BlackElo "2253"]
[Annotator "ChessBase"]
[PlyCount "56"]
[EventDate "2021.03.27"]
[EventType "team-tourn"]
[EventCountry "NET"]
[SourceTitle "playchess.com"]
[Source "ChessBase"]
[SourceQuality "1"]
[TimeControl "900+5"]

1. e4 {[%emt 0:00:00]} e6 {[%emt 0:00:03]} 2. d4 {[%emt 0:00:16]} d5 {[%emt 0:00:02]} 3. Nd2 {[%emt 0:00:02]} c5 {[%emt 0:00:05]} 4. exd5 {[%emt 0:00:04]} exd5 {[%emt 0:00:02]} 5. Ngf3 {[%emt 0:00:21]} a6 {[%emt 0:00:04]} 6. Be2 {[%emt 0:00:31]} Nf6 {[%emt 0:00:05]} 7. O-O {[%emt 0:00:08]} Be7 {[%emt 0:00:02]} 8. dxc5 {[%emt 0:00:05]} Bxc5 {[%emt 0:00:02]} 9. Nb3 {[%emt 0:00:02]} Bb6 {[%emt 0:00:05]} 10. Bg5 {[%emt 0:00:27]} O-O {[%emt 0:00:03]} 11. c3 {[%emt 0:00:14]} Nc6 {[%emt 0:00:08]} 12. Bxf6 {[%emt 0:02:05]} Qxf6 {[%emt 0:00:03]} 13. Qxd5 {[%emt 0:00:03]} h6 {[%emt 0:00:27]} 14. Rad1 {[%emt 0:01:41]} Be6 {[%emt 0:00:48]} 15. Qe4 {[%emt 0:00:57]} Rfe8 {[%emt 0:00:37]} 16. Bc4 {[%emt 0:00:57]} Bf5 {[%emt 0:00:44]} 17. Qf4 {[%emt 0:00:12]} Re4 {[%emt 0:00:12]} 18. Bxf7+ {[%emt 0:00:38]} Qxf7 {[%emt 0:00:13]} 19. Qc1 {[%emt 0:00:41]} Bg4 {[%emt 0:00:14]} 20. Nbd2 {[%emt 0:00:10]} Re2 {[%emt 0:00:12]} 21. h3 {[%emt 0:00:20]} Bh5 {[%emt 0:00:20]} 22. Rde1 {[%emt 0:00:56]} Rae8 {[%emt 0:00:08]} 23. Rxe2 {[%emt 0:00:13]} Rxe2 {[%emt 0:00:02]} 24. Qd1 {[%emt 0:00:06]} Qe7 {[%emt 0:00:23]} 25. b4 {[%emt 0:00:34]} Ne5 {[%emt 0:00:30]} 26. g4 {[%emt 0:00:29]} Nxf3+ {[%emt 0:00:07]} 27. Nxf3 {[%emt 0:00:02]} Bf7 {[%emt 0:00:04]} 28. a4 {[%emt 0:00:18]} Qe4 {[%emt 0:00:18]} 0-1

[Event "European Online Club-ch-F 2021"]
[Site "Online"]
[Date "2021.03.27"]
[Round "5.14"]
[White "Katkov, Michelle"]
[Black "Moreau, Teodor"]
[Result "1-0"]
[ECO "B22"]
[WhiteElo "2078"]
[BlackElo "2329"]
[Annotator "NA"]
[PlyCount "61"]
[EventDate "2021.03.27"]
[EventType "team-tourn"]
[EventCountry "NET"]
[SourceTitle "playchess.com"]
[Source "ChessBase"]
[SourceQuality "1"]
[TimeControl "900+5"]

1. e4 {[%emt 0:00:00]} c5 {[%emt 0:00:05]} 2. c3 {[%emt 0:00:10]} d5 {[%emt 0:00:07]} 3. exd5 {[%emt 0:00:03]} Qxd5 {[%emt 0:00:02]} 4. d4 {[%emt 0:00:02]} Nf6 {[%emt 0:00:07]} 5. Nf3 {[%emt 0:00:03]} e6 {[%emt 0:00:03]} 6. Be2 {[%emt 0:00:18]} Be7 {[%emt 0:00:15]} 7. O-O {[%emt 0:01:22]} O-O {[%emt 0:00:18]} 8. c4 {[%emt 0:00:49]} Qd8 {[%emt 0:00:18]} 9. dxc5 {[%emt 0:00:05]} Bxc5 {[%emt 0:00:44]} 10. Nc3 {[%emt 0:00:13]} Nc6 {[%emt 0:01:39]} 11. a3 {[%emt 0:00:26]} b6 {[%emt 0:00:19]} 12. b4 {[%emt 0:00:18]} Be7 {[%emt 0:00:05]} 13. Bf4 {[%emt 0:01:07]} Bb7 {[%emt 0:00:18]} 14. Nb5 {[%emt 0:00:51]} Nh5 {[%emt 0:03:55]} 15. Bc7 {[%emt 0:01:28]} Qc8 {[%emt 0:00:33]} 16. Bd6 {[%emt 0:01:17]} Rd8 {[%emt 0:00:08]} 17. c5 {[%emt 0:00:44]} bxc5 {[%emt 0:00:26]} 18. bxc5 {[%emt 0:00:06]} Nf4 {[%emt 0:00:32]} 19. Rb1 {[%emt 0:02:33]} Ba6 {[%emt 0:02:29]} 20. Bc4 {[%emt 0:00:55]} Na5 {[%emt 0:01:04]} 21. Qc1 {[%emt 0:00:39]} Ng6 {[%emt 0:01:41]} 22. Be2 {[%emt 0:01:06]} Nb7 {[%emt 0:00:29]} 23. Bxe7 {[%emt 0:01:10]} Nxe7 {[%emt 0:00:03]} 24. Rd1 {[%emt 0:00:56]} Qxc5 {[%emt 0:00:29]} 25. Qxc5 {[%emt 0:00:15]} Nxc5 {[%emt 0:00:03]} 26. Rdc1 {[%emt 0:00:07]} Rac8 {[%emt 0:00:52]} 27. Nxa7 {[%emt 0:00:04]} Bxe2 {[%emt 0:00:02]} 28. Nxc8 {[%emt 0:00:02]} Rxc8 {[%emt 0:00:01]} 29. Rb2 {[%emt 0:00:04]} Bd3 {[%emt 0:00:09]} 30. Ne5 {[%emt 0:00:05]} Bg6 {[%emt 0:00:09]} 31. Rb5 {[%emt 0:00:04]} 1-0

[Event "European Online Club-ch-F 2021"]
[Site "Online"]
[Date "2021.03.27"]
[Round "5.15"]
[White "Reizniece-Ozola, Dana"]
[Black "Stolyarsky, Yegor"]
[Result "1-0"]
[ECO "E62"]
[WhiteElo "2279"]
[BlackElo "2063"]
[Annotator "NA"]
[PlyCount "85"]
[EventDate "2021.03.27"]
[EventType "team-tourn"]
[EventCountry "NET"]
[SourceTitle "playchess.com"]
[Source "ChessBase"]
[SourceQuality "1"]
[TimeControl "900+5"]

1. c4 {[%emt 0:00:00]} Nf6 {[%emt 0:00:18]} 2. g3 {[%emt 0:00:08]} g6 {[%emt 0:00:02]} 3. Bg2 {[%emt 0:00:03]} Bg7 {[%emt 0:00:01]} 4. Nf3 {[%emt 0:00:05]} O-O {[%emt 0:00:05]} 5. O-O {[%emt 0:00:03]} d6 {[%emt 0:00:01]} 6. Nc3 {[%emt 0:00:03]} c6 {[%emt 0:00:02]} 7. d4 {[%emt 0:00:07]} Bf5 {[%emt 0:00:01]} 8. h3 {[%emt 0:00:13]} Ne4 {[%emt 0:00:04]} 9. Nd2 {[%emt 0:01:50]} Nxd2 {[%emt 0:01:05]} 10. Qxd2 {[%emt 0:00:05]} Na6 {[%emt 0:00:11]} 11. b3 {[%emt 0:00:31]} e5 {[%emt 0:00:43]} 12. d5 {[%emt 0:00:45]} Rc8 {[%emt 0:00:55]} 13. Bb2 {[%emt 0:00:32]} Qe7 {[%emt 0:00:31]} 14. Rad1 {[%emt 0:00:17]} Rfd8 {[%emt 0:00:11]} 15. g4 {[%emt 0:01:17]} Bd7 {[%emt 0:00:04]} 16. dxc6 {[%emt 0:00:03]} Bxc6 {[%emt 0:00:01]} 17. Nd5 {[%emt 0:00:02]} Bxd5 {[%emt 0:00:38]} 18. Bxd5 {[%emt 0:00:26]} Nc5 {[%emt 0:00:03]} 19. e3 {[%emt 0:01:11]} Qh4 {[%emt 0:00:39]} 20. Bg2 {[%emt 0:00:03]} h5 {[%emt 0:00:23]} 21. Qe2 {[%emt 0:00:11]} hxg4 {[%emt 0:00:27]} 22. Qxg4 {[%emt 0:00:09]} Qxg4 {[%emt 0:00:01]} 23. hxg4 {[%emt 0:00:19]} Kf8 {[%emt 0:00:49]} 24. Rd5 {[%emt 0:00:13]} Ke7 {[%emt 0:01:04]} 25. Rfd1 {[%emt 0:00:03]} a5 {[%emt 0:00:18]} 26. f4 {[%emt 0:00:21]} Ne6 {[%emt 0:01:16]} 27. Rxa5 {[%emt 0:00:32]} Ra8 {[%emt 0:00:35]} 28. Rxa8 {[%emt 0:02:04]} Rxa8 {[%emt 0:00:00]} 29. fxe5 {[%emt 0:00:23]} dxe5 {[%emt 0:00:40]} 30. a4 {[%emt 0:00:05]} Rb8 {[%emt 0:00:21]} 31. Ba3+ {[%emt 0:00:28]} Ke8 {[%emt 0:00:08]} 32. Bd6 {[%emt 0:00:21]} Rd8 {[%emt 0:00:23]} 33. Bxb7 {[%emt 0:00:04]} f5 {[%emt 0:00:06]} 34. gxf5 {[%emt 0:00:16]} gxf5 {[%emt 0:00:14]} 35. b4 {[%emt 0:00:26]} Bh6 {[%emt 0:00:40]} 36. Kf2 {[%emt 0:00:15]} f4 {[%emt 0:00:11]} 37. exf4 {[%emt 0:00:21]} Bxf4 {[%emt 0:00:12]} 38. c5 {[%emt 0:00:15]} Kf7 {[%emt 0:00:35]} 39. a5 {[%emt 0:00:32]} Rh8 {[%emt 0:00:19]} 40. Rh1 {[%emt 0:00:18]} Rg8 {[%emt 0:01:28]} 41. a6 {[%emt 0:00:23]} Bg3+ {[%emt 0:00:12]} 42. Kf1 {[%emt 0:00:07]} Rg4 {[%emt 0:00:31]} 43. a7 {[%emt 0:00:06]} 1-0

[Event "European Online Club-ch-F 2021"]
[Site "Online"]
[Date "2021.03.27"]
[Round "5.16"]
[White "Gleizer, Adar"]
[Black "Grandell, Anders"]
[Result "1/2-1/2"]
[ECO "B36"]
[WhiteElo "1833"]
[BlackElo "2296"]
[Annotator "NA"]
[PlyCount "113"]
[EventDate "2021.03.27"]
[EventType "team-tourn"]
[EventCountry "NET"]
[SourceTitle "playchess.com"]
[Source "ChessBase"]
[SourceQuality "1"]
[TimeControl "900+5"]

1. e4 {[%emt 0:00:00]} c5 {[%emt 0:00:04]} 2. Nf3 {[%emt 0:00:06]} g6 {[%emt 0:00:07]} 3. c4 {[%emt 0:00:04]} Nc6 {[%emt 0:00:06]} 4. d4 {[%emt 0:00:06]} cxd4 {[%emt 0:00:00]} 5. Nxd4 {[%emt 0:00:01]} Nf6 {[%emt 0:00:05]} 6. Nc3 {[%emt 0:00:02]} d6 {[%emt 0:00:01]} 7. Be2 {[%emt 0:00:20]} Nxd4 {[%emt 0:00:03]} 8. Qxd4 {[%emt 0:00:02]} Bg7 {[%emt 0:00:01]} 9. Be3 {[%emt 0:00:08]} O-O {[%emt 0:00:01]} 10. Qd2 {[%emt 0:00:30]} Be6 {[%emt 0:00:03]} 11. O-O {[%emt 0:00:18]} Qa5 {[%emt 0:00:07]} 12. f3 {[%emt 0:00:23]} Rfc8 {[%emt 0:00:11]} 13. Nd5 {[%emt 0:00:35]} Qxd2 {[%emt 0:00:09]} 14. Bxd2 {[%emt 0:00:04]} Bxd5 {[%emt 0:00:14]} 15. exd5 {[%emt 0:00:38]} b5 {[%emt 0:01:15]} 16. Rac1 {[%emt 0:00:57]} bxc4 {[%emt 0:00:24]} 17. Bxc4 {[%emt 0:00:03]} Rab8 {[%emt 0:00:40]} 18. Bb3 {[%emt 0:01:05]} Nd7 {[%emt 0:00:11]} 19. Rxc8+ {[%emt 0:00:41]} Rxc8 {[%emt 0:00:03]} 20. Rc1 {[%emt 0:00:12]} Rxc1+ {[%emt 0:00:13]} 21. Bxc1 {[%emt 0:00:02]} Bd4+ {[%emt 0:00:31]} 22. Kf1 {[%emt 0:00:06]} Nb6 {[%emt 0:00:18]} 23. Ke2 {[%emt 0:00:38]} Kg7 {[%emt 0:00:05]} 24. Kd3 {[%emt 0:00:08]} Bg1 {[%emt 0:00:06]} 25. h3 {[%emt 0:00:15]} f5 {[%emt 0:00:05]} 26. Be3 {[%emt 0:00:09]} Bxe3 {[%emt 0:00:14]} 27. Kxe3 {[%emt 0:00:01]} Kf6 {[%emt 0:00:01]} 28. f4 {[%emt 0:00:12]} g5 {[%emt 0:01:26]} 29. g3 {[%emt 0:00:42]} Nd7 {[%emt 0:00:28]} 30. Bc2 {[%emt 0:00:36]} h6 {[%emt 0:01:25]} 31. b4 {[%emt 0:00:15]} h5 {[%emt 0:01:54]} 32. a4 {[%emt 0:01:33]} Nf8 {[%emt 0:02:44]} 33. a5 {[%emt 0:00:44]} e6 {[%emt 0:01:13]} 34. b5 {[%emt 0:00:10]} exd5 {[%emt 0:00:42]} 35. b6 {[%emt 0:00:03]} axb6 {[%emt 0:00:02]} 36. a6 {[%emt 0:00:44]} Ne6 {[%emt 0:00:03]} 37. a7 {[%emt 0:00:02]} Nc7 {[%emt 0:00:02]} 38. Ba4 {[%emt 0:00:22]} h4 {[%emt 0:00:25]} 39. gxh4 {[%emt 0:01:20]} gxf4+ {[%emt 0:00:06]} 40. Kxf4 {[%emt 0:00:01]} d4 {[%emt 0:00:04]} 41. Bc6 {[%emt 0:00:20]} Kg6 {[%emt 0:00:50]} 42. a8=Q {[%emt 0:01:21]} Nxa8 {[%emt 0:00:07]} 43. Bxa8 {[%emt 0:00:03]} b5 {[%emt 0:00:06]} 44. Bc6 {[%emt 0:00:47]} b4 {[%emt 0:00:02]} 45. Bd7 {[%emt 0:00:05]} b3 {[%emt 0:00:08]} 46. Bxf5+ {[%emt 0:00:06]} Kh5 {[%emt 0:00:10]} 47. Kg3 {[%emt 0:00:04]} b2 {[%emt 0:00:02]} 48. Bd3 {[%emt 0:00:11]} Kh6 {[%emt 0:00:02]} 49. Kg4 {[%emt 0:00:04]} Kg7 {[%emt 0:00:11]} 50. Kg5 {[%emt 0:00:03]} Kh8 {[%emt 0:00:04]} 51. Kg6 {[%emt 0:00:07]} Kg8 {[%emt 0:00:01]} 52. h5 {[%emt 0:00:02]} Kh8 {[%emt 0:00:02]} 53. Kf7 {[%emt 0:00:51]} d5 {[%emt 0:00:04]} 54. Kf8 {[%emt 0:00:06]} b1=Q {[%emt 0:00:02]} 55. Bxb1 {[%emt 0:00:02]} d3 {[%emt 0:00:01]} 56. Bxd3 {[%emt 0:00:02]} d4 {[%emt 0:00:01]} 57. Kf7 {[%emt 0:00:28]} 1/2-1/2

[Event "European Online Club-ch-F 2021"]
[Site "Online"]
[Date "2021.03.27"]
[Round "5.17"]
[White "Sochacki, Christophe"]
[Black "Isik, Alparslan"]
[Result "1-0"]
[ECO "D00"]
[WhiteElo "2477"]
[BlackElo "2321"]
[Annotator "ChessBase"]
[PlyCount "117"]
[EventDate "2021.03.27"]
[EventType "team-tourn"]
[EventCountry "NET"]
[SourceTitle "playchess.com"]
[Source "ChessBase"]
[SourceQuality "1"]
[TimeControl "900+5"]

1. d4 {[%emt 0:00:00]} Nf6 {[%emt 0:00:04]} 2. Nc3 {[%emt 0:00:02]} d5 {[%emt 0:00:02]} 3. Bf4 {[%emt 0:00:02]} e6 {[%emt 0:00:09]} 4. Nf3 {[%emt 0:00:30]} a6 {[%emt 0:00:14]} 5. e3 {[%emt 0:00:24]} c5 {[%emt 0:00:03]} 6. Ne5 {[%emt 0:00:12]} b5 {[%emt 0:00:10]} 7. g4 {[%emt 0:01:06]} Bb7 {[%emt 0:00:15]} 8. Bg2 {[%emt 0:00:04]} Nc6 {[%emt 0:00:05]} 9. h4 {[%emt 0:01:32]} Be7 {[%emt 0:00:16]} 10. g5 {[%emt 0:00:06]} Nd7 {[%emt 0:00:03]} 11. Qh5 {[%emt 0:01:30]} Ndxe5 {[%emt 0:00:34]} 12. dxe5 {[%emt 0:00:01]} b4 {[%emt 0:02:28]} 13. Ne2 {[%emt 0:00:03]} O-O {[%emt 0:00:39]} 14. Qg4 {[%emt 0:01:11]} Qc7 {[%emt 0:00:08]} 15. Qg3 {[%emt 0:01:23]} d4 {[%emt 0:01:48]} 16. h5 {[%emt 0:00:15]} Na5 {[%emt 0:01:57]} 17. g6 {[%emt 0:00:51]} Bxg2 {[%emt 0:00:14]} 18. gxh7+ {[%emt 0:00:14]} Kxh7 {[%emt 0:00:51]} 19. Qxg2 {[%emt 0:00:02]} Qc6 {[%emt 0:00:29]} 20. e4 {[%emt 0:00:08]} Rad8 {[%emt 0:00:08]} 21. O-O-O {[%emt 0:00:29]} Kh8 {[%emt 0:02:38]} 22. Rdg1 {[%emt 0:01:39]} Rg8 {[%emt 0:00:04]} 23. Bd2 {[%emt 0:00:42]} d3 {[%emt 0:01:37]} 24. cxd3 {[%emt 0:02:21]} Qa4 {[%emt 0:00:09]} 25. Kb1 {[%emt 0:00:14]} Rxd3 {[%emt 0:00:12]} 26. Bh6 {[%emt 0:00:27]} Nc4 {[%emt 0:00:52]} 27. Nc1 {[%emt 0:01:04]} b3 {[%emt 0:00:51]} 28. a3 {[%emt 0:00:31]} Nxa3+ {[%emt 0:00:04]} 29. bxa3 {[%emt 0:00:01]} Qxa3 {[%emt 0:00:01]} 30. f3 {[%emt 0:00:08]} Rc3 {[%emt 0:00:05]} 31. Qb2 {[%emt 0:00:08]} Qxb2+ {[%emt 0:00:07]} 32. Kxb2 {[%emt 0:00:01]} Rxf3 {[%emt 0:00:01]} 33. Bd2 {[%emt 0:00:02]} c4 {[%emt 0:00:02]} 34. Rf1 {[%emt 0:00:15]} Rxf1 {[%emt 0:00:15]} 35. Rxf1 {[%emt 0:00:01]} Rd8 {[%emt 0:00:02]} 36. Ba5 {[%emt 0:00:12]} Rd7 {[%emt 0:00:08]} 37. Ne2 {[%emt 0:00:04]} Bc5 {[%emt 0:00:07]} 38. Kc3 {[%emt 0:00:05]} Rb7 {[%emt 0:00:11]} 39. Kxc4 {[%emt 0:00:03]} b2 {[%emt 0:00:01]} 40. Nc3 {[%emt 0:00:03]} Be3 {[%emt 0:00:08]} 41. Rb1 {[%emt 0:00:07]} Bc1 {[%emt 0:00:05]} 42. Na4 {[%emt 0:00:06]} Rb8 {[%emt 0:00:06]} 43. Bc3 {[%emt 0:00:02]} Rc8+ {[%emt 0:00:03]} 44. Kd3 {[%emt 0:00:04]} Rd8+ {[%emt 0:00:07]} 45. Kc2 {[%emt 0:00:02]} Kh7 {[%emt 0:00:06]} 46. Nxb2 {[%emt 0:00:05]} Bg5 {[%emt 0:00:04]} 47. Ra1 {[%emt 0:00:09]} Ra8 {[%emt 0:00:04]} 48. Rf1 {[%emt 0:00:07]} Ra7 {[%emt 0:00:02]} 49. Bd4 {[%emt 0:00:05]} Rc7+ {[%emt 0:00:02]} 50. Kd3 {[%emt 0:00:01]} Kh6 {[%emt 0:00:02]} 51. Nc4 {[%emt 0:00:03]} Kxh5 {[%emt 0:00:09]} 52. Ra1 {[%emt 0:00:06]} Rc6 {[%emt 0:00:08]} 53. Bb6 {[%emt 0:00:02]} Bf4 {[%emt 0:00:09]} 54. Rxa6 {[%emt 0:00:03]} g5 {[%emt 0:00:02]} 55. Ra7 {[%emt 0:00:05]} Kg6 {[%emt 0:00:06]} 56. Rc7 {[%emt 0:00:20]} Rxc7 {[%emt 0:00:05]} 57. Bxc7 {[%emt 0:00:01]} f6 {[%emt 0:00:05]} 58. Ke2 {[%emt 0:00:06]} g4 {[%emt 0:00:02]} 59. Kf2 {[%emt 0:00:05]} 1-0

[Event "European Online Club-ch-F 2021"]
[Site "Online"]
[Date "2021.03.27"]
[Round "5.18"]
[White "Karaoglan, Doruk"]
[Black "Maatoug, Redwan"]
[Result "1/2-1/2"]
[ECO "B25"]
[WhiteElo "2230"]
[BlackElo "2202"]
[Annotator "NA"]
[PlyCount "132"]
[EventDate "2021.03.27"]
[EventType "team-tourn"]
[EventCountry "NET"]
[SourceTitle "playchess.com"]
[Source "ChessBase"]
[SourceQuality "1"]
[TimeControl "900+5"]

1. e4 {[%emt 0:00:00]} c5 {[%emt 0:00:05]} 2. Nc3 {[%emt 0:00:04]} Nc6 {[%emt 0:00:08]} 3. g3 {[%emt 0:00:03]} g6 {[%emt 0:00:02]} 4. Bg2 {[%emt 0:00:03]} Bg7 {[%emt 0:00:02]} 5. d3 {[%emt 0:00:03]} d6 {[%emt 0:00:09]} 6. f4 {[%emt 0:00:13]} Nf6 {[%emt 0:00:56]} 7. Nf3 {[%emt 0:00:13]} O-O {[%emt 0:00:02]} 8. O-O {[%emt 0:00:03]} Rb8 {[%emt 0:00:01]} 9. h3 {[%emt 0:00:05]} b5 {[%emt 0:00:11]} 10. g4 {[%emt 0:00:03]} b4 {[%emt 0:01:30]} 11. Ne2 {[%emt 0:00:03]} c4 {[%emt 0:00:28]} 12. Be3 {[%emt 0:01:30]} cxd3 {[%emt 0:01:04]} 13. cxd3 {[%emt 0:00:03]} Bb7 {[%emt 0:01:46]} 14. Ng3 {[%emt 0:01:30]} Nd7 {[%emt 0:01:08]} 15. d4 {[%emt 0:01:25]} e5 {[%emt 0:00:21]} 16. d5 {[%emt 0:04:13]} Na5 {[%emt 0:00:03]} 17. f5 {[%emt 0:00:03]} Nc4 {[%emt 0:00:22]} 18. Bc1 {[%emt 0:00:07]} Qb6+ {[%emt 0:00:18]} 19. Rf2 {[%emt 0:00:42]} Ne3 {[%emt 0:01:12]} 20. Qe2 {[%emt 0:00:18]} Nxg2 {[%emt 0:00:08]} 21. Kxg2 {[%emt 0:00:02]} Ba6 {[%emt 0:00:04]} 22. Qd1 {[%emt 0:00:53]} Nc5 {[%emt 0:00:16]} 23. Ne1 {[%emt 0:00:31]} Rfc8 {[%emt 0:00:59]} 24. Be3 {[%emt 0:00:12]} Qb5 {[%emt 0:00:08]} 25. Qf3 {[%emt 0:00:20]} Rc7 {[%emt 0:00:05]} 26. h4 {[%emt 0:00:47]} Nd3 {[%emt 0:00:23]} 27. Nxd3 {[%emt 0:00:03]} Qxd3 {[%emt 0:00:02]} 28. Rd1 {[%emt 0:00:12]} Qb5 {[%emt 0:00:21]} 29. h5 {[%emt 0:00:07]} b3 {[%emt 0:00:28]} 30. a3 {[%emt 0:01:39]} Rc2 {[%emt 0:00:18]} 31. hxg6 {[%emt 0:00:03]} Rxf2+ {[%emt 0:00:12]} 32. Qxf2 {[%emt 0:00:36]} hxg6 {[%emt 0:00:05]} 33. f6 {[%emt 0:00:09]} Bf8 {[%emt 0:00:57]} 34. Kf3 {[%emt 0:00:39]} Rc8 {[%emt 0:00:41]} 35. Rd2 {[%emt 0:00:30]} Rc2 {[%emt 0:01:50]} 36. Rxc2 {[%emt 0:00:13]} bxc2 {[%emt 0:00:05]} 37. Qxc2 {[%emt 0:00:01]} Bb7 {[%emt 0:00:09]} 38. Bxa7 {[%emt 0:00:14]} Bh6 {[%emt 0:00:25]} 39. Be3 {[%emt 0:00:08]} Bxe3 {[%emt 0:00:20]} 40. Kxe3 {[%emt 0:00:02]} Qb6+ {[%emt 0:00:01]} 41. Kf3 {[%emt 0:00:01]} Qd4 {[%emt 0:00:08]} 42. Ne2 {[%emt 0:00:13]} Qb6 {[%emt 0:00:07]} 43. Nc3 {[%emt 0:00:06]} Qg1 {[%emt 0:00:04]} 44. Qf2 {[%emt 0:00:01]} Qh1+ {[%emt 0:00:08]} 45. Kg3 {[%emt 0:00:02]} Bc8 {[%emt 0:00:08]} 46. a4 {[%emt 0:00:07]} Qa1 {[%emt 0:00:12]} 47. Qd2 {[%emt 0:00:08]} Qg1+ {[%emt 0:00:02]} 48. Qg2 {[%emt 0:00:04]} Qe3+ {[%emt 0:00:04]} 49. Qf3 {[%emt 0:00:02]} Qg1+ {[%emt 0:00:02]} 50. Qg2 {[%emt 0:00:01]} Qe3+ {[%emt 0:00:02]} 51. Kh2 {[%emt 0:00:01]} Qh6+ {[%emt 0:00:09]} 52. Qh3 {[%emt 0:00:16]} Qd2+ {[%emt 0:00:06]} 53. Kg1 {[%emt 0:00:04]} Qe1+ {[%emt 0:00:09]} 54. Qf1 {[%emt 0:00:04]} Qg3+ {[%emt 0:00:07]} 55. Qg2 {[%emt 0:00:03]} Qe1+ {[%emt 0:00:02]} 56. Kh2 {[%emt 0:00:03]} Qh4+ {[%emt 0:00:02]} 57. Qh3 {[%emt 0:00:02]} Qf2+ {[%emt 0:00:02]} 58. Kh1 {[%emt 0:00:04]} Qxf6 {[%emt 0:00:14]} 59. Kg2 {[%emt 0:00:03]} Qf4 {[%emt 0:00:03]} 60. Qf3 {[%emt 0:00:02]} Qd2+ {[%emt 0:00:01]} 61. Qf2 {[%emt 0:00:02]} Qg5 {[%emt 0:00:06]} 62. a5 {[%emt 0:00:13]} Bxg4 {[%emt 0:00:14]} 63. Qg3 {[%emt 0:00:14]} Qd2+ {[%emt 0:00:01]} 64. Qf2 {[%emt 0:00:02]} Qg5 {[%emt 0:00:02]} 65. Kf1 {[%emt 0:00:09]} Qc1+ {[%emt 0:00:04]} 66. Kg2 {[%emt 0:00:10]} Qg5 {[%emt 0:00:02]} 1/2-1/2

[Event "European Online Club-ch-F 2021"]
[Site "Online"]
[Date "2021.03.27"]
[Round "5.19"]
[White "Cantin, Loic"]
[Black "Apaydin, Fethi"]
[Result "0-1"]
[ECO "B06"]
[WhiteElo "2182"]
[BlackElo "2260"]
[Annotator "NA"]
[PlyCount "40"]
[EventDate "2021.03.27"]
[EventType "team-tourn"]
[EventCountry "NET"]
[SourceTitle "playchess.com"]
[Source "ChessBase"]
[SourceQuality "1"]
[TimeControl "900+5"]

1. e4 {[%emt 0:00:00]} g6 {[%emt 0:00:23]} 2. d4 {[%emt 0:00:19]} Bg7 {[%emt 0:00:03]} 3. Nc3 {[%emt 0:00:08]} d6 {[%emt 0:00:08]} 4. Be3 {[%emt 0:00:33]} a6 {[%emt 0:00:05]} 5. f4 {[%emt 0:00:45]} b5 {[%emt 0:00:07]} 6. Bd3 {[%emt 0:00:10]} Bb7 {[%emt 0:00:15]} 7. Nf3 {[%emt 0:00:39]} Nf6 {[%emt 0:01:10]} 8. a3 {[%emt 0:01:05]} Nbd7 {[%emt 0:00:58]} 9. h3 {[%emt 0:03:49]} O-O {[%emt 0:00:22]} 10. O-O {[%emt 0:00:13]} c5 {[%emt 0:01:03]} 11. e5 {[%emt 0:01:48]} Nh5 {[%emt 0:00:16]} 12. Be4 {[%emt 0:01:21]} Qc8 {[%emt 0:02:09]} 13. Nd5 {[%emt 0:00:51]} Re8 {[%emt 0:00:10]} 14. Kh2 {[%emt 0:01:51]} cxd4 {[%emt 0:01:29]} 15. Qxd4 {[%emt 0:00:12]} dxe5 {[%emt 0:00:07]} 16. fxe5 {[%emt 0:00:02]} Qb8 {[%emt 0:00:10]} 17. Kg1 {[%emt 0:01:26]} Nxe5 {[%emt 0:00:11]} 18. Qd2 {[%emt 0:00:06]} Ng3 {[%emt 0:00:22]} 19. Nxe5 {[%emt 0:00:10]} Nxe4 {[%emt 0:00:14]} 20. Qd3 {[%emt 0:00:42]} Qxe5 {[%emt 0:00:14]} 0-1